Cogmind - Beta 14 *** ADVENTURER MODE // 2025.04.30 @ 23:08:34 Player: Allakazzaror Result: Destroyed by 59-Z5P(R) with Subdweller Machine Gun Performance ------------- Evolutions (0) 0 Regions Visited (3) 600 Robots Destroyed (36) 180 Value Destroyed (710) 710 Prototype IDs (15) 300 Alien Tech Used (0) 0 Bonus (145) 145 TOTAL SCORE: 1935 Bonus ------- Follower Combat Kills 145 Cogmind --------- Core Integrity 0/250 Matter 190/300 Energy 53/100 System Corruption 0% Temperature Cool (0) Movement Walking (190) Ox1 Location -10/Subcaves Parts ------- > --- POWER (1) -------- (None) > --- PROPULSION (2) --- Carbon-fiber Leg > --- UTILITY (2) ------ Large Storage Unit Signal Interpreter > --- WEAPON (2) ------- Enhanced Flamer > --- INVENTORY (15) --- Improved Ion Engine Improved Ion Engine Flightbrick High-capacity Matter Pod (200) Sensor Array Sensor Array Terrain Scanner Assault Rifle Grenade Launcher Rocket Launcher Peak State ------------ > --- POWER ------------ Light Angular Momentum Engine > --- PROPULSION ------- Light Treads Light Treads > --- UTILITY ---------- Large Storage Unit Signal Interpreter > --- WEAPON ----------- Beamcaster Barrage Gun > --- INVENTORY -------- Improved Ion Engine Improved Ion Engine Flightbrick High-capacity Matter Pod Sensor Array Sensor Array Terrain Scanner Assault Rifle Grenade Launcher Rocket Launcher Mining Laser Enhanced Flamer [Rating: 22] Favorites ----------- Power Light Angular Momentum Engine Engine Light Angular Momentum Engine Propulsion Light Treads Treads Light Treads Leg Carbon-fiber Leg Utility Large Storage Unit Storage Large Storage Unit Processor Signal Interpreter Weapon Assault Rifle Energy Gun Beamcaster Ballistic Gun Assault Rifle Launcher Grenade Launcher Special Weapon Mining Laser Build | -11 -10 -10 -10 ------- Run | Yrd Mat Min Sub Slots Evolved . | . . . . Power . | . . . . Propulsion . | . . . . Utility . | . . . . Weapon . | . . . . Parts Attached 31 | 3 10 2 16 Power 5 | 1 1 . 3 Engine 5 | 1 1 . 3 Core . | . . . . Reactor . | . . . . Propulsion 4 | 1 1 . 2 Treads 3 | 1 1 . 1 Leg 1 | . . . 1 Wheel . | . . . . Hover . | . . . . Flight . | . . . . Utility 3 | . 3 . . Device . | . . . . Storage 2 | . 2 . . Processor 1 | . 1 . . Hackware . | . . . . Protection . | . . . . Artifact . | . . . . Weapon 19 | 1 5 2 11 Energy Gun 2 | 1 . . 1 Energy Cannon . | . . . . Ballistic Gun 9 | . 3 2 4 Ballistic Cannon . | . . . . Launcher 1 | . . . 1 Special Weapon 7 | . 2 . 5 Impact Weapon . | . . . . Slashing Weapon . | . . . . Piercing Weapon . | . . . . Special Melee Weapon . | . . . . Unidentified Prototypes . | . . . . Parts Lost 6 | . . . 6 Power 1 | . . . 1 Propulsion 2 | . . . 2 Utility . | . . . . Weapon 3 | . . . 3 Highest Loss Streak 2 | . . . 2 To Critical Strikes . | . . . . Average Slot Usage (%) 88 | . 95 100 79 Engine 12 | . 14 14 10 Treads 22 | . 27 28 16 Storage 14 | . 14 14 14 Processor 13 | . 9 14 14 Energy Gun 4 | . 4 . 7 Ballistic Gun 17 | . 22 28 10 Special Weapon 1 | . 1 . 3 Peak Build Rating 22 | 3 9 10 22 Average Rating 12 | 2 7 9 15 On Entrance 5 | . 3 9 10 Naked Turns . | . . . . Heaviest Build 37 | 7 31 31 37 Greatest Support 40 | 20 40 40 40 Greatest Overweight (x) 6 | . . . 6 Average Overweight (x) . | . . . 1 Largest Inventory Capacity 15 | 5 15 15 15 Average Capacity 14 | 5 13 15 15 Most Carried 15 | 5 12 15 15 Average Carried 12 | 4 7 13 14 Final Capacity 15 | 5 15 15 15 Final Carried 15 | 5 11 15 13 Class Distribution -------------------- 100% | Mutant Dominant Class ---------------- Mutant | -10/Materials Mutant | -10/Mines Mutant | -10/Subcaves Resources | -11 -10 -10 -10 ----------- Run | Yrd Mat Min Sub Matter Collected 1020 | 123 236 419 242 Remotely . | . . . . Salvage Created 954 | . 375 128 451 Parts 78 | . 29 12 37 Haulers Intercepted 2 | . 2 . . Recyclers Shooed 1 | . 1 . . Parts Field Recycled . | . . . . Retrieved Matter . | . . . . Parts Self-Destructed 26 | . . . 26 Prevented . | . . . . Kills | -11 -10 -10 -10 ------- Run | Yrd Mat Min Sub Combat Hostiles Destroyed 30 | . 11 5 14 Guns 29 | . 11 5 13 AOE 1 | . . . 1 Classes Destroyed 8 | . 5 . 3 Hauler 2 | . 2 . . Recycler 1 | . 1 . . Turret 2 | . . . 2 Watcher 1 | . 1 . . Swarmer 19 | . 9 4 6 Grunt 4 | . 2 1 1 Sentry 1 | . . . 1 Subdweller 6 | . . . 6 Best Kill Streak 5 | . 3 3 5 Combat Bots Only 4 | . 3 3 4 Max Kills in Single Turn 2 | . 1 1 2 Gunslinging 1 | . . . 1 Exploded 1 | . . . 1 Melee . | . . . . Uniques/NPCs Destroyed . | . . . . Combat | -11 -10 -10 -10 -------- Run | Yrd Mat Min Sub Hostile Shots Fired 171 | . 41 26 104 Missed 56 | . 8 11 37 Damage Taken 1251 | . 217 137 897 Core 261 | . 17 8 236 Absorbed by Shields . | . . . . Ignored by Resistances 320 | . 68 42 210 Core Remaining (%) 100 | 100 . . . Volleys Fired 117 | . 37 12 68 Largest 2 | . 2 2 2 Hottest 103 | . 100 40 103 Shots Fired 193 | . 68 24 101 Gun 151 | . 62 24 65 Cannon . | . . . . Launcher 9 | . . . 9 Special 33 | . 6 . 27 Kinetic 113 | . 52 24 37 Thermal 71 | . 16 . 55 Explosive 9 | . . . 9 Electromagnetic . | . . . . Robot Hit Streak 19 | . 8 7 19 Robot Miss Streak 4 | . 4 1 1 Penetration Max . | . . . . Secondary Targets 5 | . . . 5 Max Gunslinging Chain 1 | . . . 1 Shots Hit Robots 118 | . 38 19 61 Core Hits 56 | . 19 9 28 Critical Kills 1 | . 1 . . Critical Parts Destroyed 1 | . . 1 . Critical Strikes 8 | . 2 1 5 Burn 6 | . 1 . 5 Destroy 2 | . 1 1 . Melee Attacks . | . . . . Impact . | . . . . Slashing . | . . . . Piercing . | . . . . Sneak Attacks . | . . . . Combat Hostiles . | . . . . Follow-up Attacks . | . . . . Damage Inflicted 1865 | . 506 241 1118 Guns 1691 | . 506 241 944 Cannons . | . . . . Explosions 133 | . . . 133 Melee . | . . . . Ramming 9 | . . . 9 Kinetic 1110 | . 408 241 461 Thermal 613 | . 98 . 515 Explosive 133 | . . . 133 Electromagnetic . | . . . . Impact . | . . . . Slashing . | . . . . Piercing . | . . . . Highest Corruption . | . . . . Average Corruption . | . . . . Corruption Purged . | . . . . Corruption Blocked . | . . . . Overload Shots . | . . . . Overflow Damage . | . . . . Projectiles . | . . . . Explosions . | . . . . Melee . | . . . . Knockbacks . | . . . . Impact . | . . . . Kinetic . | . . . . Secondary . | . . . . Self-Inflicted Damage 27 | . . . 27 Shots 2 | . . . 2 Rammed 2 | . . . 2 Targets Rammed 3 | . . . 3 Kicked . | . . . . Crushed 1 | . . . 1 Highest Temperature 281 | . 48 10 281 Average Temperature 33 | . 17 4 61 Received Heat Transfer 645 | . 30 90 525 Siege Activations . | . . . . Robots Corrupted . | . . . . Combat Hostiles . | . . . . Parts Fried . | . . . . Impact Corruptions . | . . . . Robots Melted . | . . . . Combat Hostiles . | . . . . Parts Melted 3 | . . . 3 Heat Transferred 1917 | . 370 . 1547 Parts Sabotaged . | . . . . Parts Stolen . | . . . . Parts Stripped . | . . . . Power Chain Reactions . | . . . . Alert | -11 -10 -10 -10 ------- Run | Yrd Mat Min Sub Peak Influence 158 | . 158 129 . Initial 29 | . . 29 . Average 66 | . 65 69 . Maximum Alert Level . | . . . . Low Security (%) 100 | 100 100 100 . Level 1 . | . . . . Level 2 . | . . . . Level 3 . | . . . . Level 4 . | . . . . Level 5 . | . . . . High Security . | . . . . Max Security . | . . . . Squads Dispatched 1 | . 1 . . Investigation 1 | . 1 . . Extermination . | . . . . Reinforcement . | . . . . Assault . | . . . . Garrison . | . . . . Intercept . | . . . . Searches Triggered . | . . . . Construction Impeded . | . . . . Haulers Reinforced . | . . . . Active Scanning Responses . | . . . . Cargo Convoy Interrupts . | . . . . Stealth | -11 -10 -10 -10 --------- Run | Yrd Mat Min Sub Distress Signals 1 | . 1 . . Communications Jammed . | . . . . Distress Signals . | . . . . Times Spotted 53 | . 17 12 24 Peak Tracking Total 6 | . 5 3 6 Tactical Retreats 3 | . 1 1 1 Traps | -11 -10 -10 -10 ------- Run | Yrd Mat Min Sub Traps Triggered 6 | . 1 . 5 Indirectly . | . . . . Trap Hack Attempts . | . . . . Triggered . | . . . . Disarmed . | . . . . Reprogrammed . | . . . . Reused . | . . . . Traps Extracted . | . . . . Installed . | . . . . Triggered . | . . . . Machines | -11 -10 -10 -10 ---------- Run | Yrd Mat Min Sub Machines Disabled 3 | . 1 . 2 Max in Single Turn 1 | . 1 . 1 Machines Repaired . | . . . . Machines Dismantled . | . . . . Machines Sabotaged . | . . . . Overloaded Fab Kills . | . . . . Hacking | -11 -10 -10 -10 --------- Run | Yrd Mat Min Sub Machines Accessed 9 | . 7 . 2 Terminals 7 | . 7 . . Fabricators . | . . . . Repair Stations . | . . . . Recycling Units . | . . . . Scanalyzers . | . . . . Garrison Access . | . . . . Total Hacks 24 | . 19 . 5 Successful 13 | . 8 . 5 Failed 11 | . 11 . . Catastrophic 4 | . 4 . . Database Lockouts . | . . . . Manual 9 | . 9 . . Terminals 19 | . 19 . . Fabricators . | . . . . Repair Stations . | . . . . Recycling Units . | . . . . Scanalyzers . | . . . . Garrison Access . | . . . . Terminal Hacks 13 | . 8 . 5 Record 4 | . . . 4 Prototype ID Bank 3 | . 3 . . Emergency Access Points 1 | . 1 . . Terminal Index 1 | . 1 . . Locate Traps 1 | . 1 . . Registered Components 1 | . 1 . . Zone Layout 1 | . 1 . . Derelict Proto ID Bank 1 | . . . 1 Fabricator Hacks . | . . . . Repair Station Hacks . | . . . . Recycling Unit Hacks . | . . . . Scanalyzer . | . . . . Garrison Access Hacks . | . . . . Unauthorized Hacks . | . . . . Terminals . | . . . . Fabricators . | . . . . Repair Stations . | . . . . Recycling Units . | . . . . Scanalyzers . | . . . . Garrison Access . | . . . . Data Cores Recovered . | . . . . Used . | . . . . Hacking Detections 6 | . 6 . . Full Trace Events . | . . . . Feedback Events . | . . . . Feedback Blocked . | . . . . Robot Schematics Acquired . | . . . . Robots Built . | . . . . Authchips . | . . . . Time . | . . . . Total Robot Build Rating . | . . . . Part Schematics Acquired . | . . . . Parts Built . | . . . . Authchips . | . . . . Time . | . . . . Total Part Build Rating . | . . . . Parts Repaired . | . . . . Time . | . . . . Parts Recycled . | . . . . Recycled Matter . | . . . . Retrieved Matter . | . . . . Retrieved Components . | . . . . Parts Scanalyzed . | . . . . Part Schematics Acquired . | . . . . Parts Damaged . | . . . . Bothacking | -11 -10 -10 -10 ------------ Run | Yrd Mat Min Sub Used RIF Installer . | . . . . Robots Hacked . | . . . . Non-combat . | . . . . Combat . | . . . . Robot Hacks Applied . | . . . . Relay Couplers Released . | . . . . Fabnet Peak Effective % . | . . . . Robots Rewired . | . . . . Allies Hacked . | . . . . Hacks Repelled . | . . . . Allies | -11 -10 -10 -10 -------- Run | Yrd Mat Min Sub Total Allies 4 | . . 4 . Largest Group 4 | . . 4 4 Highest-Rated Group 71 | . . 71 71 Highest-Rated Ally 31 | . . 31 31 Total Orders . | . . . . Ally Attacks 30 | . . 11 19 Total Damage 431 | . . 150 281 Kills 5 | . . 3 2 Allies Corrupted . | . . . . Allies Melted . | . . . . Intel | -11 -10 -10 -10 ------- Run | Yrd Mat Min Sub Robot Analysis Total . | . . . . Derelict Logs Recovered 1 | . . 1 . Drone Launches . | . . . . Drone Recoveries . | . . . . Exploration | -11 -10 -10 -10 ------------- Run | Yrd Mat Min Sub Turns Passed 4898 | 47 1145 1180 2526 Spaces Moved 2372 | 33 575 677 1087 Core 134 | 13 . . 121 Treads 2141 | 20 575 677 869 Legs 97 | . . . 97 Wheels . | . . . . Hover . | . . . . Flight . | . . . . Fastest Speed 50 | 50 160 160 160 Average Speed 179 | 116 160 160 204 Slowest Speed 350 | 160 160 160 350 Overloaded Moves . | . . . . Propulsion Burnouts . | . . . . Robots Hopped . | . . . . Cave-ins Triggered . | . . . . Exploration Rate (%) 65 | 4 96 100 62 Regions Visited 3 Branch Regions 2 Pre-discovered Areas 3 | . . 2 1 Known Exits Taken 2 | . 1 1 . Unknown Exits Taken 1 | 1 . . . Scrap Searched 4 | . . 3 1 Spaces Dug 13 | . 6 . 7 Terrain Destroyed 55 | . 6 . 49 Melee . | . . . . Projectile 6 | . 6 . . AOE 49 | . . . 49 Terrain Rammed . | . . . . Walls Destroyed . | . . . . Machines Disabled . | . . . . Actions | -11 -10 -10 -10 --------- Run | Yrd Mat Min Sub Total 2749 | 40 721 749 1239 Wait 183 | . 79 53 51 Move 2369 | 32 574 676 1087 Hop . | . . . . Pick Up 27 | 5 15 5 2 Fast Attach 6 | 3 . . 3 Attach 14 | . 6 . 8 Detach 6 | . 1 . 5 Swap 11 | . 4 2 5 Drop 13 | . 5 1 7 Fire 117 | . 37 12 68 Melee . | . . . . Ram . | . . . . Kick . | . . . . Crush 3 | . . . 3 Escape Stasis . | . . . . Rewire . | . . . . Trap . | . . . . Miscellaneous . | . . . . Route ------- -11/Scrapyard -10/Materials (discovered 5 exits: *Mat x3 / *Min x2) -10/Mines (discovered 3 exits: *Mat x2 / *Sub) -10/Subcaves (discovered 3 exits: *Mat x2 / *Rec) History --------- Turn | Location | Event 6 | -11/Scrapyard | Discovered new exit (range 16) 48 | -11/Scrapyard | Entered Materials 318 | -10/Materials | Build established: Mutant 410 | -10/Materials | Discovered new exit (range 3) 500 | -10/Materials | Discovered new exit (range 5) 505 | -10/Materials | Identified exit to Materials 507 | -10/Materials | Discovered new exit (range 16) 833 | -10/Materials | Discovered exit to Materials (range 3) 996 | -10/Materials | Discovered new exit (range 7) 1191 | -10/Materials | Identified exit to Mines 1193 | -10/Materials | Entered Mines 1269 | -10/Mines | A weapon hastily lodged in a ceiling crevice suddenly fell to the ground 1313 | -10/Mines | Assisted by bots powering up and referring to "LRC-V3" 1344 | -10/Mines | Received a Rocket Launcher from a helpful Derelict 1447 | -10/Mines | Learned location of Storage (-9) 1968 | -10/Mines | Discovered exit to Materials (range 6) 2172 | -10/Mines | Escorted by a lone wolf Derelict 2199 | -10/Mines | Discovered exit to Materials (range 8) 2360 | -10/Mines | Discovered new exit (range 9) 2371 | -10/Mines | Identified exit to Subcaves 2373 | -10/Mines | Entered Subcaves 2373 | -10/Subcaves | Accompanied by 4 allies 2414 | -10/Subcaves | Discovered new exit (range 10) 2426 | -10/Subcaves | Identified exit to Materials 2475 | -10/Subcaves | Ambushed by Subdwellers from Twisted Machinery 2684 | -10/Subcaves | A swath of the cavern ceiling suddenly collapsed 2753 | -10/Subcaves | A swath of the cavern ceiling suddenly collapsed 2867 | -10/Subcaves | Visited 4L-MR0's lab 2888 | -10/Subcaves | Found Flightbrick 3037 | -10/Subcaves | Discovered exit to Materials (range 3) 3417 | -10/Subcaves | Visited Clippyterm 3421 | -10/Subcaves | Learned Factory garrison access intel 3547 | -10/Subcaves | Discovered new exit (range 16) 3590 | -10/Subcaves | Identified exit to Recycling 3671 | -10/Subcaves | Core integrity fell below 50% 3674 | -10/Subcaves | Learned location of Zion (-7) 3674 | -10/Subcaves | Met a Zionite searching for "candidates" 4240 | -10/Subcaves | Disturbed a concealed Subdweller 4838 | -10/Subcaves | Core integrity fell below 20% 4899 | -10/Subcaves | Destroyed by 59-Z5P(R) with Subdweller Machine Gun Last Messages --------------- 04240_ M0-AAC(R) angrily emerges from the Twisted Machinery. 04240_ Mining Laser destroyed. 04243_ M0-AAC(R) affixes Scrap Shield Fragment to Scrap Shield. 04248_ M0-AAC(R) suffers critical hit (Burn). 04248_ M0-AAC(R) overheating. 04250_ Lgt. Treads destroyed. 04251_ M0-AAC(R) heat short circuits Sub. Power Source. 04256_ Broken Sub. Power Source melted. 04256_ M0-AAC(R) destroyed. 04555_ Acquired 30 matter. 04685_ Acquired Carbon-fiber Leg. 04688_ Acquired 16 matter. 04689_ Subatomizers dissect the Imp. Ion Engine. 04690_ Acquired 4 matter. 04704_ Subatomizers dissect the Imp. Ion Engine. 04853_ NN-09L(R) destroyed. 04860_ The unstable cave ceiling collapses. Map ----- +----------------------------------------------------+ | ?????????????????????????????????????????????? | | ?????????????????????????????????????????????? | | ?????????????????????????????????????????????? | | ?????????????????????????????????????????????? | | ?????????????????????????????????????????????? | | ?????????????????????????????????????????????? | | ?????????????????????????????????????????????? | | ?????????????????????????????????????????????? | | ?????????????????????????????????????????????? | | ?????????????????????????????????????????????? | | ?????????????????????????????????????????????? | | ?????????????????????????????????????????????? | | ???????????????????? ????????????????????????? | | ???????????????????? ???????????????????????? | | ???????????????????? ???????????????????????? | | ???????????????????? ###????????????????????? | | ????????????????????? # ##???????????????????? | | ????????????????????? #???????????????????? | | ?????????????????????? ###?????????????????? | | ?????????????????????? #?????????????????? | | ??????????????????????# ##????????????????? | | ?????????????????????## #????????????????? | | ?????????????????????# " ##???????????????? | | ?????????????????????# R" ##??????????????? | | ?????????????????????## # #??????????????? | | ?????????????????????# @ # ##??????????????? | | ?????????????????????### "###?????????????? | | ??????????????????????#" #?????????????? | | ?????????????????????## "##?????????????? | | ?????????????????????# "##????????????? | | ??????????????????#?### "" #????????????? | | ??????????????????# """ #????????????? | | ????????????????# " ##????????????? | | ??????????????? [% ## #????????????? | | ?????????? & #?# #????????????? | | ????????? #?## ##????????????? | | ??????? ## ## ## ###?????????????? | | ?????? ### #???# ###???????????????? | | ??????? ######## ##?????????????????? | | ???????? ## ##??????????????????? | | ???????? #???????????????????? | | ???????? ## ##???????????????????? | | ##??????? ## #????????????????????? | | ##???????# ## ##???????????????????? | | ####????# ## ##??????????????????? | | ##???# #### ###????????????????? | | ##### ###### ##???????????????? | | ## #?## #???????????????? | | ### ### #####???????????????? | | #?# # #####?????????????????? | +----------------------------------------------------+ Best States ------------- Heat Dissipation 25 Energy Generation 18 Energy Capacity 265 Matter Stores 300 Matter Capacity 300 Sight Range 16 Terrain Scan Density 10 Resistance: KI 20 Resistance: TH 20 Resistance: EX 20 Resistance: EM 20 Resistance: I 20 Resistance: S 20 Resistance: P 20 Evasion (%) 50 Recoil Reduction 2 Offensive Hacking 10 Item Schematics ----------------- None Robot Schematics ------------------ None Fabricated ------------ Nothing Alien Tech Used ----------------- None Achievements -------------- None Challenges ------------ None Game ------ Seed ReactionScanSpear Manual? 0 Play Time 00:38:43 Cumulative 41.8 hours Start 2025.04.30 @ 22:27:33 End 2025.04.30 @ 23:08:34 Sessions 1 Manual Loads 0 Difficulty Adventurer Special Mode None Game No. 12 Rogue 0 Adventurer 8 Explorer 4 Win Type - Total 1 Types 1/0/0/0/0/0/0/0/0 Lore% 14 Gallery% 37 Achievement% 35 Wizard Run 0 Options --------- Layout 1 ASCII 0 Keyboard 0 Movement Mouse Keybinds 0 Fullscreen 2 Font 24/Smallcaps Map View 50x35 Zoom Use 0% Tactical HUD 1 Map Filters NONE Filters NONE Steam 1 RUN: 43379763-d907-4efd-b699-ca721c990f2f